bitfinex/quotes_SOLUSD_20240726
["timestamp","ask_amount","ask_price","bid_price","bid_amount"]
[1721964390589,20.8266,176.67,176.6,0.7938146]
[1721964390797,15.1661,176.67,176.6,0.7938146]
[1721964391202,5.6609,176.65,176.6,0.7938146]
[1721964392094,5.6612,176.64,176.6,0.7938146]
[1721964392277,5.6616,176.63,176.6,0.7938146]
[1721964392480,15.1661,176.67,176.6,0.7938146]
[1721964393398,40.0361,176.67,176.6,0.7938146]
[1721964394084,5.6618,176.62,176.6,0.7938146]
[1721964394594,5.6614,176.64,176.6,0.7938146]
[1721964394794,5.6608,176.66,176.6,0.7938146]
[1721964395192,5.661,176.65,176.6,0.7938146]
[1721964395780,24.87,176.7,176.6,0.7938146]
[1721964395973,45.0,176.69,176.6,1.92610135]
[1721964396171,45.0,176.69,176.6,0.7938146]
[1721964397168,5.6603,176.67,176.6,6.4562146]
[1721964397396,45.0,176.69,176.6,0.7938146]
[1721964397576,5.6612,176.64,176.6,0.7938146]
[1721964397902,5.6609,176.65,176.6,0.7938146]
[1721964398275,14.15,176.68,176.6,0.7938146]
[1721964398495,45.0,176.69,176.6,0.7938146]
[1721964398681,5.6611,176.65,176.6,0.7938146]
[1721964399610,5.6612,176.64,176.6,0.7938146]
[1721964399904,45.0,176.69,176.6,0.7938146]
[1721964400101,39.0189,176.7,176.6,0.7938146]
[1721964400489,5.6599,176.68,176.62,5.6618]
[1721964400875,5.6599,176.68,176.61,5.6621]
[1721964401098,24.87,176.7,176.6,0.7938146]
[1721964401403,5.6606,176.66,176.6,0.7938146]
[1721964402605,5.6602,176.67,176.6,0.7938146]
[1721964403529,15.0721,176.73,176.6,0.7938146]
[1721964403530,39.9421,176.73,176.6,0.7938146]
[1721964403704,45.0,176.72,176.6,0.7938146]
[1721964404009,5.66,176.68,176.61,5.6619]
[1721964404190,45.0,176.72,176.62,5.6617]
[1721964404512,5.6596,176.69,176.62,5.6617]
[1721964404701,5.6599,176.68,176.62,5.6617]
[1721964404897,5.6599,176.68,176.6,0.7938146]
[1721964405411,5.6596,176.69,176.6,0.7938146]
[1721964405700,5.6593,176.7,176.6,0.7938146]
[1721964405915,15.0721,176.73,176.6,66.92595944]
[1721964406292,5.6592,176.71,176.6,66.92595944]
[1721964406818,5.6593,176.7,176.6,66.92595944]
[1721964406975,5.6593,176.7,176.61,1.13205363]
[1721964407394,5.659,176.71,176.62,6.1103]
[1721964407590,24.87,176.76,176.63,21.13197477]
[1721964407794,45.0,176.75,176.63,21.13197477]
[1721964408698,5.6589,176.72,176.63,21.13197477]
[1721964408882,45.0,176.75,176.63,21.13197477]
[1721964409084,5.6587,176.72,176.63,21.13197477]
[1721964409689,15.6083,176.78,176.63,21.13197477]
[1721964409890,5.6583,176.74,176.64,45.0]
[1721964410096,5.6583,176.73,176.65,20.0]
[1721964411212,5.6587,176.72,176.65,20.0]
[1721964411702,5.6583,176.73,176.65,20.0]
[1721964413007,5.658,176.74,176.65,20.0]
[1721964413204,5.6583,176.73,176.65,20.0]
[1721964413418,14.1434,176.76,176.65,20.0]
[1721964413911,39.0134,176.76,176.65,20.0]
[1721964414106,45.0,176.75,176.63,20.0]
[1721964414412,45.0,176.75,176.62,7.24224205]
[1721964415300,5.659,176.71,176.62,7.24224205]
[1721964415695,5.659,176.71,176.63,20.0]
[1721964416214,5.6586,176.72,176.63,20.0]
[1721964417706,5.6583,176.73,176.63,20.0]
[1721964417906,5.6587,176.72,176.63,20.0]
[1721964418213,5.659,176.71,176.63,20.0]
[1721964419620,15.6083,176.78,176.63,20.0]
[1721964419802,45.0,176.77,176.63,20.0]
[1721964420000,5.6581,176.74,176.64,45.0]
[1721964420200,45.0,176.77,176.64,45.0]
[1721964420201,5.6583,176.73,176.64,45.0]
[1721964420409,45.0,176.77,176.64,45.0]
[1721964420595,45.0,176.77,176.63,20.0]
[1721964420596,5.6587,176.72,176.63,20.0]
[1721964420995,5.6584,176.73,176.63,20.0]
[1721964422326,5.6576,176.76,176.64,46.1318912]
[1721964422539,5.6576,176.76,176.65,21.13177407]
[1721964422833,5.6576,176.76,176.65,20.0]
[1721964423022,5.6578,176.75,176.66,1.13178217]
[1721964423339,5.658,176.74,176.66,1.13178217]
[1721964423635,5.6581,176.74,176.66,1.13178217]
[1721964424032,45.0,176.77,176.66,1.13178217]
[1721964424331,5.6589,176.72,176.65,20.0]
[1721964424525,5.6583,176.74,176.63,20.0]
[1721964424744,14.1435,176.76,176.64,1.13186716]
[1721964424908,5.6579,176.75,176.63,21.13189203]
[1721964426238,2.04929075,176.81,176.64,21.9659]
[1721964426440,36.3805,176.82,176.65,46.00159024]
[1721964426611,5.657,176.78,176.66,45.0]
[1721964426812,5.657,176.78,176.67,21.13155086]
[1721964427021,5.657,176.78,176.68,46.13155322]
[1721964427307,5.6568,176.78,176.69,20.0]
[1721964427507,5.6566,176.79,176.69,20.0]
[1721964427829,5.6568,176.78,176.69,20.0]
[1721964428435,5.6571,176.77,176.69,20.0]
[1721964429147,5.6567,176.78,176.69,20.0]
[1721964429448,5.6564,176.79,176.7,6.1317]
[1721964429620,5.6561,176.8,176.71,46.13139338]
[1721964429948,5.6561,176.8,176.72,20.0]
[1721964430148,5.6561,176.8,176.73,1.1314016]
[1721964430455,5.6561,176.8,176.74,1.13139357]
[1721964430820,15.5963,176.82,176.74,1.13139357]
[1721964430821,5.6564,176.79,176.74,1.13139357]
[1721964431024,5.6561,176.8,176.74,1.13139357]
[1721964431841,5.6565,176.79,176.72,20.0]
[1721964433924,5.6573,176.77,176.72,20.0]
[1721964434128,15.5963,176.82,176.7,6.1317]
[1721964434129,45.0,176.81,176.71,20.0]
[1721964434333,5.6567,176.78,176.71,20.0]
[1721964434651,5.6548,176.84,176.72,16.50422012]
[1721964434948,256.6,176.9,176.74,31.2075]
[1721964434949,5.6545,176.85,176.74,31.2075]
[1721964435150,5.6542,176.86,176.75,21.1311644]
[1721964435341,14.1332,176.89,176.75,20.0]
[1721964435727,5.6547,176.85,176.75,20.0]
[1721964435930,5.6548,176.84,176.75,20.0]
[1721964436430,14.1332,176.89,176.76,1.13113598]
[1721964436431,5.6545,176.85,176.76,1.13113598]
[1721964436744,5.6545,176.85,176.77,1.1310865]
[1721964436930,5.6545,176.85,176.77,21.1310865]
[1721964437261,5.6545,176.85,176.78,20.0]
[1721964437550,5.6542,176.86,176.79,1.13108496]
[1721964437742,5.6542,176.86,176.8,1.13105187]
[1721964437923,5.6542,176.86,176.76,1.13106814]
[1721964438127,5.6546,176.85,176.77,1.13106623]
[1721964438331,5.6552,176.83,176.77,20.0]
[1721964438538,5.6548,176.84,176.77,20.0]
[1721964438732,5.6548,176.84,176.75,20.0]
[1721964440248,5.6545,176.85,176.76,1.13126021]
[1721964440550,5.6545,176.85,176.77,1.13116928]
[1721964440845,5.6549,176.84,176.75,21.13117631]
[1721964441240,5.6553,176.83,176.75,20.0]
[1721964441442,14.1357,176.86,176.74,6.3375]
[1721964441750,5.6559,176.81,176.74,6.3375]
[1721964443033,14.1325,176.9,176.74,32.33885646]
[1721964443228,5.6538,176.88,176.75,65.0]
[1721964443546,40.8746,176.91,176.76,1.13101774]
[1721964443751,5.6548,176.85,176.75,65.0]
[1721964443969,5.6548,176.85,176.75,20.0]
[1721964444130,14.1337,176.89,176.75,20.0]
[1721964444330,5.6554,176.83,176.75,20.0]
[1721964444659,5.6555,176.82,176.74,6.3375]
[1721964444827,5.655,176.84,176.74,6.3375]
[1721964445362,5.6542,176.86,176.74,7.46880358]
[1721964445531,5.6545,176.85,176.74,32.33880358]
[1721964445729,5.6545,176.85,176.75,20.0]
[1721964446135,55.0066,176.91,176.75,21.13119564]
[1721964446348,5.6541,176.87,176.75,21.13119564]
[1721964446833,14.1337,176.89,176.76,45.0]
[1721964447043,14.1337,176.89,176.77,20.0]
[1721964447356,14.1337,176.89,176.75,20.0]
[1721964447554,5.6549,176.84,176.75,20.0]
[1721964447728,5.6545,176.85,176.75,20.0]
[1721964448262,14.1337,176.89,176.76,1.1311943]
[1721964448441,14.1337,176.89,176.75,20.0]
[1721964448442,40.8746,176.91,176.77,1.13112076]
[1721964448753,16.0046,176.91,176.77,24.87]
[1721964448940,5.6539,176.87,176.78,20.0]
[1721964449140,5.6539,176.87,176.78,21.13102323]
[1721964449852,5.6535,176.88,176.82,24.9]
[1721964450647,24.9,176.9,176.82,24.9]
[1721964450851,5.6538,176.87,176.82,24.9]
[1721964456055,5.6535,176.88,176.83,1.13097081]
[1721964456253,5.6535,176.88,176.85,12.45]
[1721964456757,18.1035,176.88,176.84,12.45]
[1721964457742,5.6539,176.87,176.84,12.45]
[1721964457943,18.1035,176.88,176.84,12.45]
[1721964458141,18.1035,176.88,176.8,1.13091557]
[1721964458142,5.6535,176.88,176.85,12.45]
[1721964458343,5.6539,176.87,176.85,12.45]
[1721964458549,5.6539,176.87,176.84,12.45]
[1721964458743,12.45,176.86,176.79,21.8933]
[1721964458950,12.45,176.86,176.82,12.45]
[1721964458951,5.6545,176.85,176.82,12.45]
[1721964459146,12.45,176.86,176.79,21.8933]
[1721964459339,18.1035,176.88,176.84,12.45]
[1721964459956,12.45,176.88,176.84,12.45]
[1721964461547,18.1036,176.88,176.84,12.45]
[1721964462446,12.45,176.88,176.84,12.45]
[1721964462770,18.1035,176.88,176.84,12.45]
[1721964463251,5.6539,176.87,176.84,12.45]
[1721964464158,18.1039,176.87,176.83,12.45]
[1721964464759,18.1035,176.88,176.84,12.45]
[1721964465073,18.1035,176.88,176.79,23.02418259]
[1721964465074,5.654,176.87,176.79,23.02418259]
[1721964465255,12.45,176.86,176.82,12.45]
[1721964465650,21.6716,176.91,176.83,12.45]
[1721964465651,12.45,176.87,176.83,12.45]
[1721964466076,5.6543,176.86,176.83,12.45]
[1721964466575,5.6547,176.85,176.79,21.8933]
[1721964466764,18.1052,176.83,176.79,21.8933]
[1721964467079,16.0046,176.91,176.8,12.45]
[1721964467080,18.1048,176.84,176.8,12.45]
[1721964467266,12.45,176.84,176.8,12.45]
[1721964467577,12.45,176.83,176.79,34.3433]
[1721964467954,12.45,176.84,176.8,12.45]
[1721964469651,18.1045,176.85,176.81,12.45]
[1721964471462,12.45,176.85,176.81,12.45]
[1721964471872,16.0046,176.91,176.84,12.45]
[1721964472059,12.45,176.89,176.85,12.45]
[1721964472654,12.45,176.88,176.84,12.45]
[1721964473168,12.45,176.86,176.79,21.8933]
[1721964473471,12.45,176.85,176.81,12.45]
[1721964474187,12.45,176.86,176.82,12.45]
[1721964474563,12.45,176.87,176.84,12.45]
[1721964474966,12.45,176.87,176.83,12.45]
[1721964475162,12.45,176.85,176.79,21.8933]
[1721964475369,12.45,176.84,176.8,12.45]
[1721964476757,12.45,176.82,176.79,6.4191]
[1721964478200,12.45,176.82,176.67,49.8]
[1721964478201,12.45,176.8,176.72,6.6524]
[1721964478361,12.45,176.79,176.75,12.45]
[1721964478762,12.45,176.8,176.76,12.45]
[1721964479267,12.45,176.8,176.77,12.45]
[1721964479477,12.45,176.8,176.76,12.45]
[1721964480963,18.1061,176.8,176.76,12.45]
[1721964481686,18.1061,176.8,176.63,20.0]
[1721964481687,15.4095,176.81,176.69,6.5474]
[1721964481860,18.1058,176.81,176.77,12.45]
[1721964482267,18.1055,176.82,176.78,12.45]
[1721964482577,5.6558,176.81,176.78,12.45]
[1721964483383,5.6558,176.81,176.77,12.45]
[1721964483763,18.1058,176.81,176.77,12.45]
[1721964484262,18.1058,176.81,176.71,1.13137336]
[1721964484468,18.1058,176.81,176.77,12.45]
[1721964485389,16.1001,176.86,176.73,12.45]
[1721964485390,12.45,176.78,176.73,12.45]
[1721964485695,12.45,176.79,176.75,12.45]
[1721964485871,5.6568,176.78,176.75,12.45]
[1721964486091,12.45,176.79,176.75,12.45]
[1721964486273,18.1069,176.78,176.74,12.45]
[1721964486687,18.1069,176.78,176.69,6.5474]
[1721964486688,5.6569,176.78,176.75,12.45]
[1721964487592,16.1001,176.86,176.7,1.13146522]
[1721964487593,256.6,176.96,176.8,6.6075]
[1721964487888,396.098,176.99,176.95,12.45]
[1721964487889,15.598,176.99,176.95,12.45]
[1721964488193,2.07497687,177.01,176.91,6.6075]
[1721964488397,5.6506,176.98,176.91,6.6075]
[1721964488692,5.6514,176.95,176.91,6.6075]
[1721964488888,16.3042817,177.0,176.91,6.6075]
[1721964489081,10.18987281,176.99,176.91,6.6075]
[1721964489491,5.651,176.96,176.91,6.6075]
[1721964490575,24.87,176.98,176.9,24.87]
[1721964490576,5.6514,176.95,176.9,24.87]
[1721964490782,5.6522,176.92,176.88,24.87]
[1721964490970,24.87,176.96,176.88,24.87]
[1721964490971,5.6519,176.93,176.88,24.87]
[1721964491171,5.6524,176.92,176.87,6.5467]
[1721964492378,5.6532,176.9,176.84,24.87]
[1721964492571,24.87,176.92,176.85,1.13073111]
[1721964492787,24.87,176.9,176.84,1.13073086]
[1721964493000,5.6533,176.89,176.82,24.87]
[1721964493169,5.6538,176.88,176.82,24.87]
[1721964493374,24.87,176.9,176.83,1.13088863]
[1721964494191,5.6536,176.88,176.83,1.13088863]
[1721964494389,5.6532,176.89,176.83,1.13088863]
[1721964494783,5.6536,176.88,176.83,1.13088863]
[1721964495594,5.6539,176.87,176.83,1.13088863]
[1721964496402,24.87,176.9,176.83,1.13088863]
[1721964496903,5.6535,176.88,176.83,1.13088863]
[1721964497203,5.6532,176.89,176.82,26.00081272]
[1721964497404,5.6532,176.89,176.83,1.13073039]
[1721964497588,24.87,176.9,176.84,1.1307313]
[1721964497906,5.6539,176.87,176.81,1.13081628]
[1721964498211,5.6539,176.87,176.82,24.87]
[1721964498386,5.6535,176.88,176.83,1.13076842]
[1721964499111,5.6532,176.89,176.83,1.13076842]
[1721964499315,24.87,176.92,176.83,45.0]
[1721964499601,5.6529,176.9,176.83,45.0]
[1721964499810,5.6532,176.89,176.83,45.0]
[1721964501609,24.87,176.94,176.84,24.87]
[1721964501902,5.6528,176.91,176.84,24.87]
[1721964502304,5.6531,176.9,176.84,24.87]
[1721964502807,39.0008,176.92,176.84,26.00058139]
[1721964503105,5.6536,176.88,176.84,24.87]
[1721964503314,5.6539,176.87,176.84,24.87]
[1721964503684,5.6536,176.88,176.83,45.0]
[1721964504213,5.6542,176.86,176.84,1.13067409]
[1721964505099,5.6542,176.86,176.83,1.13081993]
[1721964505298,5.6538,176.88,176.83,1.13081993]
[1721964505518,24.87,176.9,176.83,1.13081993]
[1721964505804,39.003,176.9,176.83,1.13081993]
[1721964506017,5.6544,176.86,176.81,1.13082037]
[1721964506192,24.87,176.88,176.81,1.13083311]
[1721964506396,5.6542,176.86,176.81,1.13083311]
[1721964506789,24.87,176.86,176.79,6.2217]
[1721964506989,39.0044,176.88,176.79,7.35264735]
[1721964507204,5.6548,176.85,176.79,7.35264735]
[1721964508818,39.0044,176.88,176.79,7.35264735]
[1721964508996,5.6545,176.85,176.79,7.35264735]
[1721964509608,5.6541,176.87,176.79,7.35264735]
[1721964509805,24.87,176.88,176.8,26.00094847]
[1721964510791,5.6539,176.87,176.8,26.00094847]
[1721964511191,5.6542,176.86,176.8,26.00094847]
[1721964511699,5.6539,176.87,176.8,26.00094847]
[1721964512003,24.87,176.88,176.8,26.00094847]
[1721964512004,15.4957,176.99,176.86,24.87]
[1721964512207,24.87,176.94,176.86,24.87]
[1721964512512,5.6526,176.91,176.85,6.0233]
[1721964512692,24.87,176.92,176.85,6.0233]
[1721964512897,24.87,176.92,176.85,7.15404048]
[1721964512898,5.6528,176.91,176.85,7.15404048]
[1721964513517,24.87,176.9,176.85,1.13068649]
[1721964513697,5.6535,176.88,176.81,31.168]
[1721964513893,5.6532,176.89,176.81,31.168]
[1721964514106,30.5229,176.9,176.82,1.13078577]
[1721964514298,5.6529,176.9,176.83,26.00071801]
[1721964514618,5.6529,176.9,176.83,24.87]
[1721964515115,5.6526,176.91,176.83,26.0007076]
[1721964515314,5.653,176.9,176.83,26.0007076]
[1721964515495,5.6532,176.89,176.83,26.0007076]
[1721964515694,24.87,176.92,176.83,24.87]
[1721964515695,5.6529,176.9,176.83,24.87]
[1721964516135,24.87,176.92,176.84,1.13070538]
[1721964516309,5.6535,176.88,176.84,1.13070538]
[1721964516816,5.6539,176.87,176.84,1.13070538]
[1721964517309,24.87,176.9,176.81,6.298]
[1721964517518,5.6547,176.85,176.81,6.298]
[1721964517706,5.6542,176.86,176.81,6.298]
[1721964518300,24.87,176.9,176.78,24.87]
[1721964518301,5.6546,176.85,176.78,24.87]
[1721964518506,5.6548,176.84,176.78,24.87]
[1721964520125,5.654,176.87,176.8,24.87]
[1721964520313,5.6542,176.86,176.81,1.13088819]
[1721964520620,5.6546,176.85,176.81,1.13088819]
[1721964520823,5.6548,176.84,176.81,1.13088819]
[1721964521019,5.6548,176.84,176.8,24.87]
[1721964521410,5.6548,176.84,176.81,1.13091462]
[1721964521617,5.6545,176.85,176.8,24.87]
[1721964522132,5.6548,176.84,176.8,24.87]
[1721964522311,5.6545,176.85,176.81,1.13093439]
[1721964522826,5.6542,176.86,176.81,1.13093439]
[1721964523325,39.0028,176.9,176.81,1.13093439]
[1721964524832,5.6542,176.86,176.81,1.13093439]
[1721964526526,5.6545,176.85,176.81,1.13093439]
[1721964528928,5.6542,176.86,176.81,1.13093439]
[1721964532306,24.87,176.9,176.81,1.13093439]
[1721964532932,5.6542,176.86,176.81,1.13093439]
[1721964533313,5.6545,176.85,176.81,1.13093439]
[1721964533518,5.6545,176.85,176.78,24.87]
[1721964533721,5.6545,176.85,176.79,1.13095861]
[1721964533919,5.6545,176.85,176.8,1.13095861]
[1721964534129,5.6548,176.84,176.76,1.13096044]
[1721964534415,5.6548,176.84,176.78,24.87]
[1721964535238,5.6545,176.85,176.78,24.87]
[1721964535547,5.6548,176.84,176.78,24.87]
[1721964536539,5.6545,176.85,176.78,24.87]
[1721964537121,24.87,176.86,176.76,91.0009617]
[1721964537332,5.6548,176.84,176.76,71.0009617]
[1721964537650,30.5248,176.84,176.76,71.0009617]
[1721964538320,12.46,176.82,176.78,12.46]
[1721964538932,12.46,176.83,176.79,12.46]
[1721964539921,12.46,176.84,176.8,12.46]
[1721964540545,18.1149,176.84,176.8,12.46]
[1721964540844,18.1149,176.84,176.77,1.13099411]
[1721964540845,12.46,176.83,176.79,12.46]
[1721964541410,5.6545,176.86,176.82,12.46]
[1721964541615,18.1145,176.86,176.83,1.1308724]
[1721964542034,5.6545,176.85,176.83,1.1308724]
[1721964542223,18.1145,176.85,176.81,12.46]
[1721964544949,5.6548,176.84,176.81,12.46]
[1721964545439,5.6552,176.83,176.81,12.46]
[1721964546121,18.1152,176.83,176.8,12.46]
[1721964546321,18.1152,176.83,176.79,12.46]
[1721964547040,12.46,176.82,176.77,1.13087507]
[1721964547235,12.46,176.82,176.78,12.46]
[1721964548423,24.92,176.79,176.66,6.0513]
[1721964548643,6.1677,176.86,176.66,6.0513]
[1721964548644,12.46,176.68,176.66,6.0513]
[1721964548935,15.75,176.74,176.65,0.5669419]
[1721964548936,12.46,176.67,176.65,0.5669419]
[1721964549316,15.75,176.74,176.65,0.5669419]
[1721964549317,12.46,176.66,176.65,0.5669419]
[1721964549513,5.6587,176.72,176.65,0.5669419]
[1721964549738,12.46,176.71,176.67,12.46]
[1721964550143,5.6574,176.76,176.7,12.46]
[1721964550340,30.5974,176.76,176.71,1.13150351]
[1721964550946,30.5974,176.76,176.67,24.94]
[1721964550947,30.5974,176.76,176.68,1.13150465]
[1721964551248,30.5974,176.76,176.68,46.13150465]
[1721964551436,24.94,176.76,176.68,45.0]
[1721964551635,24.94,176.76,176.65,0.5669419]
[1721964551636,5.6587,176.72,176.65,25.5069419]
[1721964551828,5.6587,176.72,176.66,66.13172201]
[1721964552144,30.5983,176.74,176.67,24.94]
[1721964552343,24.94,176.74,176.68,46.13160574]
[1721964553049,30.5974,176.76,176.68,46.13160574]
[1721964553355,40.69,176.78,176.69,24.94]
[1721964553522,40.69,176.78,176.7,46.13139524]
[1721964553718,40.69,176.78,176.7,45.0]
[1721964553927,24.94,176.77,176.7,45.0]
[1721964554124,5.6581,176.74,176.67,24.94]
[1721964554341,5.6581,176.74,176.68,45.0]
[1721964554538,5.6581,176.74,176.69,1.13160605]
[1721964555852,30.5978,176.75,176.68,46.13160544]
[1721964557127,5.6581,176.74,176.69,1.13152701]
[1721964557339,5.6581,176.74,176.68,45.0]
[1721964558029,5.6584,176.73,176.68,45.0]
[1721964558233,5.6593,176.7,176.65,0.5669419]
[1721964561829,5.6599,176.68,176.65,0.5669419]
[1721964562033,5.6605,176.66,176.65,0.5669419]
[1721964562436,30.6005,176.66,176.65,0.5669419]
[1721964563155,5.6605,176.66,176.65,0.5669419]
[1721964563534,5.6603,176.67,176.65,0.5669419]
[1721964563931,24.94,176.68,176.65,0.5669419]
[1721964563932,5.6586,176.73,176.66,5.6603]
[1721964564162,24.94,176.74,176.67,46.13171968]
[1721964564354,5.6584,176.73,176.68,1.13171857]
[1721964564562,24.94,176.72,176.65,25.5069419]
[1721964564742,5.6596,176.69,176.65,0.5669419]
[1721964564937,24.94,176.7,176.65,0.5669419]
[1721964565243,5.6605,176.67,176.65,0.5669419]
[1721964566361,24.94,176.7,176.65,0.5669419]
[1721964566537,5.6599,176.69,176.65,0.5669419]
[1721964567057,5.6599,176.68,176.65,0.5669419]
[1721964567558,5.6581,176.74,176.68,5.6598]
[1721964567749,5.6584,176.73,176.67,24.94]
[1721964567948,24.94,176.75,176.65,25.5069419]
[1721964568262,5.6584,176.73,176.66,45.0]
[1721964568651,30.5984,176.73,176.66,45.0]
[1721964568849,5.6588,176.72,176.66,45.0]
[1721964570072,5.659,176.71,176.65,25.5069419]
[1721964571460,5.6587,176.72,176.65,25.5069419]
[1721964571764,30.5998,176.69,176.65,0.5669419]
[1721964572062,5.6599,176.68,176.65,0.5669419]
[1721964572447,5.6603,176.67,176.65,0.5669419]
[1721964573249,24.94,176.69,176.65,0.5669419]
[1721964573449,5.6605,176.66,176.65,0.5669419]
[1721964574951,24.94,176.67,176.65,0.5669419]
[1721964575572,5.6605,176.66,176.65,0.5669419]
[1721964575751,30.6003,176.67,176.65,0.5669419]
[1721964576861,5.6605,176.66,176.65,0.5669419]
[1721964578073,5.6603,176.67,176.65,0.5669419]
[1721964578288,24.94,176.67,176.65,0.5669419]
[1721964578577,24.94,176.72,176.65,0.5669419]
[1721964578876,15.3525,176.73,176.65,0.5669419]
[1721964578877,24.94,176.7,176.65,0.5669419]
[1721964579176,24.94,176.68,176.65,0.5669419]
[1721964580274,30.6005,176.66,176.65,0.5669419]
[1721964580775,24.94,176.66,176.65,0.5669419]
[1721964580984,30.6002,176.68,176.65,0.5669419]
[1721964581276,24.94,176.68,176.65,0.5669419]
[1721964581483,30.6,176.68,176.65,0.5669419]
[1721964582282,5.6603,176.67,176.65,0.5669419]
[1721964582570,30.6005,176.66,176.65,0.5669419]
[1721964585879,24.94,176.66,176.65,0.5669419]
[1721964586184,5.6604,176.67,176.65,0.5669419]
[1721964588477,5.6599,176.68,176.65,0.5669419]
[1721964589785,5.6596,176.69,176.65,0.5669419]
[1721964591384,5.6599,176.68,176.65,0.5669419]
[1721964591754,24.94,176.7,176.65,0.5669419]
[1721964591755,5.6597,176.69,176.65,0.5669419]
[1721964592660,5.6599,176.68,176.65,0.5669419]
[1721964592981,5.6603,176.67,176.65,0.5669419]
[1721964593182,5.6605,176.66,176.65,0.5669419]
[1721964593972,5.6602,176.67,176.65,0.5669419]
[1721964594859,30.6005,176.66,176.65,0.5669419]
[1721964597364,5.6625,176.6,176.54,30.6041]
[1721964597580,5.6625,176.6,176.53,5.6646]
[1721964597581,5.663,176.59,176.53,5.6646]
[1721964598388,30.6025,176.6,176.53,5.6646]
[1721964599988,5.6629,176.59,176.53,5.6646]
[1721964600295,30.6025,176.6,176.54,5.6643]
[1721964600474,5.6625,176.6,176.54,5.6643]
[1721964601491,5.6629,176.59,176.53,5.6647]
[1721964601693,24.94,176.6,176.52,24.94]
[1721964601895,5.6632,176.58,176.52,30.6048]
[1721964602489,5.6629,176.59,176.52,30.6048]
[1721964602677,5.6629,176.59,176.53,5.6646]
[1721964603269,24.94,176.6,176.51,6.4769]
[1721964603470,5.6629,176.59,176.53,5.6645]
[1721964603685,5.6636,176.57,176.51,6.4769]
[1721964603886,24.94,176.58,176.51,6.4769]
[1721964604085,5.664,176.56,176.51,5.9769]
[1721964604294,5.6643,176.55,176.51,5.9769]
[1721964604477,5.6643,176.55,176.49,16.3749]
[1721964604685,24.94,176.54,176.47,6.4708631]
[1721964604997,5.665,176.52,176.47,0.8043631]
[1721964605174,24.94,176.54,176.47,0.8043631]
[1721964605799,5.6653,176.52,176.47,0.8043631]
[1721964605980,5.6654,176.51,176.47,0.8043631]
[1721964606399,5.6657,176.5,176.47,0.8043631]
[1721964606579,24.94,176.54,176.47,0.8043631]
[1721964606774,5.6643,176.55,176.48,6.79955736]
[1721964606979,5.6644,176.54,176.48,5.6663]
[1721964607703,24.94,176.54,176.47,0.8043631]
[1721964608199,5.6652,176.52,176.47,0.8043631]
[1721964608382,5.6654,176.51,176.47,0.8043631]
[1721964608884,5.665,176.53,176.47,0.8043631]
[1721964609086,5.6651,176.52,176.47,25.7443631]
[1721964609482,5.6648,176.53,176.47,25.7443631]
[1721964609994,5.6648,176.53,176.47,31.4108631]
[1721964610178,5.6648,176.53,176.47,25.7443631]
[1721964610608,5.6663,176.48,176.47,0.8043631]
[1721964610900,24.94,176.52,176.47,0.8043631]
[1721964611228,30.6045,176.54,176.47,6.4708631]
[1721964611582,5.6645,176.54,176.47,6.4708631]
[1721964611789,30.6038,176.56,176.48,24.94]
[1721964612083,5.6638,176.56,176.49,50.666]